{"text_format":"1","workbook":"xlsx","n_sheets":2,"sheets":["2021 m. darbo užmokestis","2020 m. darbo užmokestis "],"not_rendered":{"charts":0,"images":0,"macros":1,"external_links":1,"defined_names":3,"comments":0,"pivot_tables":0},"unopened":[],"bounds":{"document_bytes":16777216,"sheet_cells":100000,"rows_first":2000,"rows_last":500,"rows_between":2000,"halvings":0,"cell_chars":16384,"cell_head_chars":4096},"cells_cut":0,"cells_raw":0,"read":"whole","date_system":"1900"}

{"sheet":"2021 m. darbo užmokestis","index":0,"n_rows":20,"n_cols":13,"rows_kept":20,"cut":false,"hidden":false,"merged":[[6,1,6,4],[7,1,7,4],[8,1,8,4],[19,2,19,5]]}
[]
[]
[]
[]
[]
[]
[null,"MARIJAMPOLĖS VAIKŲ LOPŠELIO-DARŽELIO \"PASAKA\""]
[null,"DARBUOTOJŲ VIDUTINIS DARBO UŽMOKESTIS"]
[null,"2021 m."]
[]
[null,null,"Pareigų pavadinimas","Pareigy    bių skaičius","2021 m. I ketv.          1 pareigybės vidutinis mėnesio darbo užmokestis"]
[null,null,"Ikimokyklinio ugdymo mokytojas",17.45,1481]
[null,null,"Priešmokyklinio ugdymo mokytojas",3.3,1584]
[null,null,"Virėjas       ",3,791,null,null,{"$f":"SUM(D14)","v":3},779,{"$f":"SUM(H14*I14)","v":2337},null,null,{"$f":"SUM(J14+L14)","v":2337}]
[null,null,"Priešmokyklinio ugdymo mokytojo padėjėjas",2,855,null,null,{"$f":"SUM(D15)","v":2},814,1628,{"$f":"#REF!","v":{"$error":"#REF!"}},{"$f":"SUM(J15*5/100)","v":81.400000000000006},1709.4]
[null,null,"Ikimokyklinio ugdymo mokytojo padėjėjas",10,838,null,null,5,814,{"$f":"SUM(H16*I16)","v":4070},{"$f":"#REF!","v":{"$error":"#REF!"}},{"$f":"SUM(J16*5)/100","v":203.5},{"$f":"SUM(J16+L16)","v":4273.5}]
[null,null,"Ikimokyklinio ugdymo mokytojo padėjėjas (dirbti su SPU vaikais)",2,855,null,null,3,779,{"$f":"SUM(H17*I17)","v":2337},{"$f":"#REF!","v":{"$error":"#REF!"}},{"$f":"SUM(J17*5)/100","v":116.85},{"$f":"SUM(J17+L17)","v":2453.85}]
[null,null,"Kiemsargis",1.5,642]
[]
[null,null,{"$f":"'2020 m. darbo užmokestis '!C20","v":"Pedagogų darbo užmokestis priklauso nuo kvalifikacinės kategorijos ir darbo stažo"}]

{"sheet":"2020 m. darbo užmokestis ","index":1,"n_rows":20,"n_cols":5,"rows_kept":20,"cut":false,"hidden":false,"merged":[[6,1,6,4],[7,1,7,4],[8,1,8,4]]}
[]
[]
[]
[]
[]
[]
[null,"MARIJAMPOLĖS VAIKŲ LOPŠELIO-DARŽELIO \"PASAKA\""]
[null,"DARBUOTOJŲ VIDUTINIS DARBO UŽMOKESTIS"]
[null,"2020 m."]
[]
[null,null,"Pareigybių pavadinimas","Pareigybių skaičius","2020 m. IV ketv. 1 pareigybės vidutinis mėnesio darbo užmokestis"]
[null,null,{"$f":"'2021 m. darbo užmokestis'!C12","v":"Ikimokyklinio ugdymo mokytojas"},17.600000000000001,1435]
[null,null,{"$f":"'2021 m. darbo užmokestis'!C13","v":"Priešmokyklinio ugdymo mokytojas"},3.3,1548]
[null,null,{"$f":"'2021 m. darbo užmokestis'!C14","v":"Virėjas       "},3.3,750]
[null,null,{"$f":"'2021 m. darbo užmokestis'!C15","v":"Priešmokyklinio ugdymo mokytojo padėjėjas"},2,756]
[null,null,{"$f":"'2021 m. darbo užmokestis'!C16","v":"Ikimokyklinio ugdymo mokytojo padėjėjas"},10,752]
[null,null,{"$f":"'2021 m. darbo užmokestis'!C17","v":"Ikimokyklinio ugdymo mokytojo padėjėjas (dirbti su SPU vaikais)"},1.5,706]
[null,null,{"$f":"'2021 m. darbo užmokestis'!C18","v":"Kiemsargis"},1,607]
[]
[null,null,"Pedagogų darbo užmokestis priklauso nuo kvalifikacinės kategorijos ir darbo stažo"]